bitfinex-derivatives/quotes_ETHF0:USTF0_20241005
["timestamp","ask_amount","ask_price","bid_price","bid_amount"]
[1728139541363,0.72409,2416.7,2416.2,3.2078]
[1728139541567,0.28968,2416.4,2416.2,3.49749]
[1728139541868,0.28968,2416.4,2416.2,3.2078]
[1728139542372,0.28968,2416.4,2416.2,3.49749]
[1728139544871,0.28967,2416.4,2416.2,3.49749]
[1728139545568,0.28964,2416.6,2416.2,3.2078]
[1728139545757,0.28968,2416.4,2416.2,3.2078]
[1728139545963,0.28968,2416.4,2416.2,3.49749]
[1728139546772,0.28968,2416.4,2416.2,3.2078]
[1728139546966,0.28968,2416.4,2416.2,3.49749]
[1728139547165,0.28968,2416.4,2416.2,3.2078]
[1728139547573,0.28968,2416.4,2416.2,3.49749]
[1728139547963,1.49,2416.7,2416.2,3.2078]
[1728139548167,0.28968,2416.3,2416.2,3.2078]
[1728139549159,0.28967,2416.4,2416.2,3.2078]
[1728139549365,0.28967,2416.4,2416.2,3.49749]
[1728139550978,0.28966,2416.5,2416.3,0.28968]
[1728139552062,0.28965,2416.6,2416.4,0.28966]
[1728139553867,1.49,2416.9,2416.3,4.73575815]
[1728139554063,0.28967,2416.5,2416.3,0.28968]
[1728139555562,1.86201,2417.0,2416.1,3.2078]
[1728139555563,1.49,2416.6,2416.1,3.2078]
[1728139555763,1.49,2416.6,2416.1,3.4975]
[1728139555764,0.28968,2416.3,2416.1,3.4975]
[1728139556272,0.28967,2416.4,2416.2,0.28969]
[1728139557168,1.49,2416.6,2416.1,3.2078]
[1728139557375,0.28965,2416.6,2416.4,0.28966]
[1728139557973,0.28967,2416.5,2416.2,0.28969]
[1728139558372,0.28967,2416.5,2416.3,0.28968]
[1728139558569,0.28967,2416.5,2416.1,5.77688217]
[1728139558570,2.21408,2416.8,2416.1,5.77688217]
[1728139558776,2.21408,2416.8,2416.3,0.28967]
[1728139558970,0.28966,2416.5,2416.3,0.28967]
[1728139560574,0.28967,2416.4,2416.2,4.68714246]
[1728139561172,0.28966,2416.5,2416.3,0.28968]
[1728139561571,2.21408,2416.8,2416.1,4.57658217]
[1728139561572,0.28969,2416.3,2416.1,4.57658217]
[1728139561770,0.72412,2416.6,2416.1,4.28688217]
[1728139561771,2.21412,2416.6,2416.1,4.28688217]
[1728139561973,0.28968,2416.3,2416.1,3.4975]
[1728139562269,0.28968,2416.3,2416.1,4.57658217]
[1728139562979,0.28968,2416.4,2416.1,4.57658217]
[1728139563478,0.28968,2416.4,2416.1,3.4975]
[1728139563680,1.247,2416.3,2416.1,5.77688217]
[1728139563881,1.247,2416.3,2416.2,0.28969]
[1728139564178,1.247,2416.3,2416.2,1.36877217]
[1728139565179,1.247,2416.3,2416.2,0.28969]
[1728139566374,1.247,2416.3,2416.2,1.36877217]
[1728139566872,1.247,2416.3,2416.2,0.28969]
[1728139567074,1.247,2416.3,2416.2,1.36877217]
[1728139567382,1.247,2416.3,2416.2,10.23193247]
[1728139568271,1.247,2416.3,2416.2,13.43973247]
[1728139568983,1.247,2416.3,2416.2,10.23193247]
[1728139569176,1.247,2416.3,2416.2,11.65812332]
[1728139569374,1.247,2416.3,2416.2,12.16929093]
[1728139570080,1.247,2416.3,2416.2,12.71100944]
[1728139570975,1.247,2416.3,2416.2,11.09020876]
[1728139570976,0.8483,2416.3,2416.2,11.09020876]
[1728139571276,0.22734083,2416.3,2416.2,16.10416786]
[1728139571478,0.22734083,2416.3,2416.2,16.10166794]
[1728139571669,0.22734083,2416.3,2416.2,13.94080897]
[1728139572072,0.28964,2416.7,2416.2,14.98013793]
[1728139572286,0.28965,2416.6,2416.5,1.08043994]
[1728139572479,0.4264,2416.8,2416.5,1.08043994]
[1728139572779,0.28964,2416.7,2416.5,1.37008994]
[1728139573372,0.28964,2416.7,2416.5,1.08043994]
[1728139573571,0.28964,2416.7,2416.5,1.37008994]
[1728139573776,0.71602,2416.8,2416.6,0.28964]
[1728139574076,0.71602,2416.8,2416.5,1.08043994]
[1728139574273,0.4264,2416.8,2416.5,1.08043994]
[1728139574582,3.23476711,2417.4,2416.7,2.57043994]
[1728139574783,0.928,2417.8,2417.3,2.56928647]
[1728139574984,0.8311,2417.7,2417.6,0.28952]
[1728139575373,0.8311,2417.7,2417.6,8.56487795]
[1728139575374,0.4099,2417.7,2417.6,8.56487795]
[1728139575774,1.8999,2417.7,2417.6,5.21864442]
[1728139576085,12.32541,2417.7,2417.6,1.07928647]
[1728139576379,0.69941,2417.7,2417.6,1.07928647]
[1728139576680,0.28953,2417.6,2417.3,1.586]
[1728139576885,0.28953,2417.6,2417.3,1.49]
[1728139576886,0.8319,2417.5,2417.3,1.49]
[1728139577088,1.12144,2417.5,2417.3,1.49]
[1728139577280,0.8319,2417.5,2417.3,1.49]
[1728139577983,0.8319,2417.5,2417.3,1.77955]
[1728139578184,0.8319,2417.5,2417.4,4.64818737]
[1728139578581,0.8319,2417.5,2417.4,8.78498737]
[1728139579291,0.8319,2417.5,2417.2,3.2078]
[1728139579580,0.4043,2417.5,2417.4,4.32440537]
[1728139579889,0.4043,2417.5,2417.3,0.28955]
[1728139580387,0.4043,2417.5,2417.2,3.2078]
[1728139580591,0.69385,2417.5,2417.2,3.2078]
[1728139580889,0.428,2417.4,2417.2,3.2078]
[1728139581275,0.3878,2417.3,2417.2,3.2078]
[1728139582286,0.3878,2417.3,2417.2,3.49737]
[1728139582678,0.3878,2417.3,2417.2,3.2078]
[1728139584789,0.3878,2417.3,2417.2,3.49737]
[1728139585181,0.3878,2417.3,2417.2,4.98737]
[1728139585384,0.3878,2417.3,2417.2,13.77360146]
[1728139585683,0.4043,2417.5,2417.4,0.28955]
[1728139585987,0.4043,2417.5,2417.4,10.22105063]
[1728139586180,0.4043,2417.5,2417.4,16.22105063]
[1728139586381,0.3965,2417.7,2417.4,15.93150063]
[1728139586584,0.417,2417.9,2417.6,4.6978]
[1728139586889,0.417,2417.9,2417.8,1.7795]
[1728139587286,0.417,2417.9,2417.8,10.52911499]
[1728139587480,0.417,2417.9,2417.8,6.39311499]
[1728139587981,0.417,2417.9,2417.8,10.52911499]
[1728139588177,0.4001,2418.0,2417.9,0.28949]
[1728139588382,0.4001,2418.0,2417.9,4.98729]
[1728139588689,0.4001,2418.0,2417.9,13.79690355]
[1728139589192,0.4109,2418.2,2417.9,13.50741355]
[1728139589380,0.4109,2418.2,2418.1,1.49]
[1728139589381,0.8333,2418.2,2418.1,1.49]
[1728139589581,0.8333,2418.2,2418.1,0.28946]
[1728139589883,0.8333,2418.2,2418.1,9.10327285]
[1728139590792,0.8333,2418.2,2418.1,12.33327285]
[1728139591695,0.8333,2418.2,2418.1,12.04381285]
[1728139591892,0.8333,2418.2,2418.1,12.33327285]
[1728139595994,0.8333,2418.2,2418.1,20.89608339]
[1728139596491,0.8333,2418.2,2418.1,26.89608339]
[1728139597092,0.28939,2418.8,2418.3,0.28943]
[1728139597291,0.4023,2418.6,2418.4,6.4378]
[1728139597487,0.4023,2418.6,2418.4,10.85875254]
[1728139599593,0.4023,2418.6,2418.4,14.99315254]
[1728139599785,0.4023,2418.6,2418.4,3.2078]
[1728139599786,4.1344,2418.5,2418.4,3.2078]
[1728139599987,4.1344,2418.5,2418.1,0.096]
[1728139599988,4.1344,2418.5,2418.1,3.3038]
[1728139600187,10.89,2419.4,2418.4,7.99120434]
[1728139600188,0.28937,2418.9,2418.4,7.99120434]
[1728139600390,4.282,2419.2,2418.4,7.99120434]
[1728139600391,0.2894,2418.7,2418.5,3.2078]
[1728139600596,0.28939,2418.8,2418.3,0.8015]
[1728139600793,0.28939,2418.8,2418.6,4.47178434]
[1728139600988,6.4378,2419.1,2418.5,4.47178434]
[1728139601196,0.2894,2418.6,2418.3,0.096]
[1728139601403,0.2894,2418.6,2418.2,3.2078]
[1728139601597,3.23,2418.7,2418.2,3.2078]
[1728139601803,0.2894,2418.7,2418.2,6.72725]
[1728139602104,3.2078,2418.8,2418.2,6.4378]
[1728139602105,0.28941,2418.6,2418.2,6.4378]
[1728139603099,0.8248,2418.5,2418.2,6.72725]
[1728139603296,1.2416,2418.5,2418.2,6.72725]
[1728139604803,1.2416,2418.5,2418.3,4.4191246]
[1728139605400,1.2416,2418.5,2418.3,4.7085646]
[1728139605599,1.2416,2418.5,2418.3,4.4191246]
[1728139605797,1.2416,2418.5,2418.3,4.7085646]
[1728139607295,1.2416,2418.5,2418.3,4.4191246]
[1728139609511,1.2416,2418.5,2418.3,4.7085646]
[1728139612101,0.2894,2418.7,2418.4,3.23]
[1728139612102,0.4135,2418.6,2418.4,3.23]
[1728139612413,0.3865,2418.5,2418.4,3.23]
[1728139612921,0.3865,2418.5,2418.4,7.62404289]
[1728139614311,0.3865,2418.5,2418.4,7.91347289]
[1728139616117,0.3865,2418.5,2418.4,7.62404289]
[1728139616502,11.7518,2419.2,2418.8,0.28937]
[1728139616503,4.186,2419.2,2418.8,0.28937]
[1728139616702,0.38533,2419.3,2418.9,3.51937]
[1728139616703,0.806,2419.0,2418.9,3.51937]
[1728139616915,0.806,2419.0,2418.9,8.15149152]
[1728139617301,0.4013,2419.2,2419.0,0.28936]
[1728139617507,0.4013,2419.2,2419.1,1.49]
[1728139619109,0.69063,2419.2,2419.1,1.49]
[1728139619309,0.4013,2419.2,2419.1,1.49]
[1728139619507,0.4013,2419.2,2419.0,0.28935]
[1728139620216,0.3947,2419.3,2418.9,7.99449208]
[1728139620420,0.7913,2419.3,2418.9,7.99449208]
[1728139620909,0.7913,2419.3,2419.1,0.28934]
[1728139621313,0.3947,2419.3,2419.2,4.37670511]
[1728139621511,0.3947,2419.3,2419.2,4.66603511]
[1728139621719,0.4113,2419.4,2419.3,0.28932]
[1728139622415,0.4113,2419.4,2419.3,3.51932]
[1728139623328,3.5969,2419.5,2419.4,0.28931]
[1728139623617,0.72315,2419.9,2419.4,0.28931]
[1728139623618,0.28928,2419.7,2419.4,4.79053058]
[1728139624011,4.4116,2419.8,2419.4,4.79053058]
[1728139624216,4.4116,2419.8,2419.5,3.23]
[1728139624217,4.0178,2419.8,2419.5,3.23]
[1728139624514,0.28928,2419.6,2419.5,3.23]
[1728139624908,0.28928,2419.6,2419.5,7.91953624]
[1728139625113,0.28928,2419.6,2419.5,12.05233624]
[1728139625913,0.28928,2419.7,2419.5,12.34162624]
[1728139626112,0.28928,2419.7,2419.6,3.23]
[1728139626113,0.28927,2419.7,2419.6,3.23]
[1728139626309,4.30707,2419.8,2419.6,3.51928]
[1728139626513,4.30707,2419.8,2419.6,7.70758605]
[1728139626915,4.30707,2419.8,2419.6,7.41830605]
[1728139626916,0.28927,2419.7,2419.6,7.41830605]
[1728139627108,0.28927,2419.7,2419.6,4.18830605]
[1728139627315,4.30707,2419.8,2419.5,3.23]
[1728139627622,4.30707,2419.8,2419.6,5.00103191]
[1728139628218,1.09927,2419.8,2419.6,5.00103191]
[1728139628422,1.09927,2419.8,2419.6,4.71175191]
[1728139629115,0.28927,2419.7,2419.6,4.71175191]
[1728139629511,1.09927,2419.8,2419.6,4.71175191]
[1728139629708,1.09927,2419.8,2419.6,5.00103191]
[1728139629913,1.09927,2419.8,2419.7,3.23]
[1728139631220,1.09927,2419.8,2419.5,3.23]
[1728139631221,0.28928,2419.6,2419.5,3.23]
[1728139631719,0.81,2419.8,2419.5,3.23]
[1728139631931,1.09927,2419.8,2419.7,3.23]
[1728139636522,0.28929,2419.6,2419.5,3.23]
[1728139636926,0.28929,2419.6,2419.5,7.92925362]
[1728139637124,0.28929,2419.6,2419.5,3.23]
[1728139641528,0.81,2419.8,2419.5,1.49]
[1728139641728,0.28928,2419.6,2419.5,1.49]
[1728139643126,0.28928,2419.6,2419.2,4.4138]
[1728139643127,0.81,2419.8,2419.2,3.2078]
[1728139643331,0.81,2419.8,2419.0,0.096]
[1728139643332,0.28934,2419.1,2419.0,0.096]
[1728139643527,0.28934,2419.1,2419.0,1.49]
[1728139644321,0.28937,2419.0,2418.9,1.49]
[1728139644527,0.4102,2419.2,2418.9,1.49]
[1728139644723,0.69953,2419.2,2419.1,1.49]
[1728139645128,4.83313,2419.2,2419.1,1.49]
[1728139645522,4.5438,2419.2,2418.9,3.23]
[1728139645727,0.4102,2419.2,2418.9,3.23]
[1728139646026,4.5438,2419.2,2418.9,3.23]
[1728139646228,0.28936,2419.0,2418.9,3.23]
[1728139646829,4.42376,2419.0,2418.9,3.23]
[1728139647938,0.28936,2419.0,2418.9,3.23]
[1728139649433,4.42376,2419.0,2418.9,3.23]
[1728139649637,4.42376,2419.0,2418.8,3.49717]
[1728139649638,0.28938,2418.8,2418.7,3.23]
[1728139650027,4.42378,2418.8,2418.7,3.23]
[1728139650233,4.84848,2418.8,2418.7,3.23]
[1728139651738,0.2894,2418.7,2418.5,3.23]
[1728139652934,0.4247,2418.8,2418.5,3.23]
[1728139652935,0.2894,2418.6,2418.5,3.23]
[1728139655340,0.28944,2418.3,2418.2,0.096]
[1728139655532,0.28946,2418.2,2418.0,0.28947]
[1728139655744,0.70046,2418.2,2417.9,3.89378]
[1728139656036,0.70046,2418.2,2417.9,0.68598]
[1728139656539,0.68726,2418.1,2417.9,0.28948]
[1728139656737,0.68726,2418.1,2417.8,6.49817516]
[1728139656738,0.3978,2418.1,2417.8,6.49817516]
[1728139657036,4.3108,2418.7,2418.5,0.28941]
[1728139657037,3.4972,2418.7,2418.5,0.28941]
[1728139657446,3.2078,2418.7,2418.6,0.2894]
[1728139657741,3.2078,2418.7,2418.6,1.0849]
[1728139657954,1.09818,2418.8,2418.6,1.0849]
[1728139658334,1.09818,2418.8,2418.6,0.7955]
[1728139658537,0.8088,2418.8,2418.6,0.7955]
[1728139658735,0.28939,2418.7,2418.6,0.7955]
[1728139662341,0.28942,2418.5,2418.3,3.51943]
[1728139662540,0.28943,2418.4,2418.3,0.4281]
[1728139663137,0.403,2418.7,2418.3,0.4281]
[1728139663339,0.28942,2418.5,2418.3,0.71753]
[1728139663545,0.28942,2418.5,2418.3,0.4281]
[1728139663739,0.28943,2418.4,2418.3,0.4281]
[1728139664047,0.68513,2418.4,2418.3,0.4281]
[1728139664348,0.2894,2418.7,2418.4,0.28942]
[1728139664539,0.28941,2418.6,2418.3,3.94753]
[1728139664734,0.28941,2418.6,2418.4,0.28942]
[1728139665140,0.28941,2418.6,2418.3,4.0586]
[1728139665141,0.28941,2418.6,2418.3,4.34803]
[1728139665344,0.3957,2418.7,2418.3,4.0586]
[1728139665541,0.28943,2418.4,2418.3,0.4281]
[1728139665848,0.28942,2418.5,2418.3,0.71754]
[1728139666354,0.28942,2418.5,2418.3,0.4281]
[1728139666844,0.28942,2418.5,2418.3,0.71754]
[1728139667554,0.28941,2418.6,2418.3,2.20754]
[1728139667742,0.3957,2418.7,2418.3,2.20754]
[1728139667943,0.28941,2418.6,2418.4,0.28943]
[1728139668148,0.6851,2418.7,2418.5,0.28941]
[1728139668450,0.3957,2418.7,2418.4,1.77942]
[1728139668850,0.6851,2418.7,2418.5,0.28941]
[1728139669147,0.6851,2418.7,2418.4,1.49]
[1728139669148,0.28941,2418.6,2418.4,1.49]
[1728139669949,0.6851,2418.7,2418.4,1.77942]
[1728139670355,0.28941,2418.6,2418.4,1.49]
[1728139670743,0.6851,2418.7,2418.4,1.77942]
[1728139671068,3.49718,2418.9,2418.6,1.49]
[1728139671344,4.47536,2419.0,2418.7,1.54819]
[1728139671540,0.28938,2418.9,2418.7,1.2588]
[1728139671736,0.3875,2418.9,2418.7,1.2588]
[1728139671952,0.67688,2418.9,2418.7,1.2588]
[1728139672352,0.67688,2418.9,2418.7,1.54819]
[1728139672741,0.28938,2418.8,2418.7,1.2588]
[1728139672955,0.67687,2418.9,2418.7,0.8321]
[1728139673449,0.28938,2418.8,2418.7,0.8321]
[1728139673650,0.67688,2418.9,2418.7,0.8321]
[1728139673952,0.3875,2418.9,2418.5,4.6978]
[1728139674154,0.8109,2418.9,2418.6,0.2894]
[1728139674353,1.10028,2418.9,2418.6,0.2894]
[1728139674550,0.28938,2418.8,2418.6,0.2894]
[1728139674739,0.28938,2418.8,2418.5,4.6978]
[1728139674740,0.28938,2418.8,2418.5,4.98721]
[1728139674946,0.4002,2418.7,2418.6,0.2894]
[1728139675654,0.4002,2418.7,2418.5,4.6978]
[1728139675842,0.4002,2418.7,2418.6,0.2894]
[1728139676047,0.4002,2418.7,2418.5,4.6978]
[1728139676248,0.4002,2418.7,2418.6,0.2894]
[1728139676450,0.4002,2418.7,2418.5,4.98721]
[1728139676754,0.4002,2418.7,2418.6,0.2894]
[1728139677254,0.4002,2418.7,2418.5,4.6978]
[1728139677455,0.4002,2418.7,2418.6,0.2894]
[1728139677853,0.4002,2418.7,2418.5,4.98721]
[1728139678152,0.4002,2418.7,2418.4,1.23]
[1728139678351,0.28941,2418.6,2418.4,1.51942]
[1728139679050,0.28941,2418.6,2418.4,0.3959]
[1728139679249,6.7435,2418.5,2418.2,3.2078]
[1728139679447,6.7435,2418.5,2417.8,1.71665992]
[1728139679448,0.28949,2417.9,2417.8,1.71665992]
[1728139679649,2.86849,2417.9,2417.8,1.62065992]
[1728139679850,2.86849,2417.9,2417.5,1.62065992]
[1728139679851,0.28952,2417.6,2417.5,1.62065992]
[1728139680352,4.1368,2417.6,2417.1,0.8332]
[1728139680653,0.28956,2417.4,2417.1,0.8332]
[1728139681047,3.2078,2418.0,2417.3,1.49]
[1728139681356,0.4273,2417.9,2417.6,1.77952]
[1728139681548,0.4273,2417.9,2417.7,0.8332]
[1728139681748,0.2895,2417.8,2417.7,0.4155]
[1728139683151,0.7168,2417.9,2417.7,0.4155]
[1728139683350,0.2895,2417.8,2417.7,0.4155]
[1728139685653,3.9246,2417.9,2417.7,0.4155]
[1728139686249,3.6351,2417.9,2417.7,0.4155]
[1728139688359,0.2895,2417.8,2417.7,0.4155]
[1728139689854,3.6351,2417.9,2417.4,0.4095]
[1728139690261,0.28951,2417.7,2417.4,13.99461804]
[1728139690857,3.92459,2417.9,2417.6,0.28952]
[1728139691060,3.6351,2417.9,2417.7,0.4074]
[1728139691262,3.92459,2417.9,2417.7,0.4074]
[1728139692067,3.6351,2417.9,2417.7,0.69691]
[1728139692265,3.6351,2417.9,2417.8,0.4019]
[1728139692768,0.28955,2417.4,2417.3,0.096]
[1728139692965,0.28955,2417.4,2417.1,1.48038647]
[1728139693164,3.49735,2417.4,2417.1,1.48038647]
[1728139693367,3.90675,2417.4,2417.1,1.48038647]
[1728139693566,0.28956,2417.3,2417.1,1.48038647]
[1728139693771,3.6172,2417.4,2417.1,0.4011]
[1728139694059,0.28956,2417.3,2417.1,0.4011]
[1728139694962,0.28957,2417.2,2417.1,0.4011]
[1728139695165,3.23,2417.3,2416.6,6.5338]
[1728139695366,3.23,2417.1,2416.7,0.69513]
[1728139695662,3.51956,2417.3,2417.0,0.2896]
[1728139695867,3.90675,2417.4,2417.1,0.28958]
[1728139696068,3.90675,2417.4,2417.2,0.4055]
[1728139696371,0.28956,2417.3,2417.2,0.4055]
[1728139698469,7.3668,2417.3,2416.8,8.92478375]
[1728139698765,0.28957,2417.2,2417.0,0.28959]
[1728139698967,0.28957,2417.2,2416.9,0.4055]
[1728139699158,0.28957,2417.2,2416.9,0.6951]
[1728139699359,0.28957,2417.2,2416.9,0.4055]
[1728139699561,0.28957,2417.2,2417.0,0.28959]
[1728139700066,0.28957,2417.2,2416.9,0.4055]
[1728139700067,0.28957,2417.2,2416.9,0.6951]
[1728139700866,6.72736,2417.3,2417.0,0.28959]
[1728139701065,6.72736,2417.3,2417.0,0.69119]
[1728139701472,0.4094,2417.4,2417.1,4.4322038]
[1728139701665,0.4094,2417.4,2417.2,0.28957]
[1728139702563,0.28954,2417.5,2417.1,4.4322038]
[1728139702763,0.28954,2417.5,2417.0,3.6094]
[1728139702764,3.2078,2417.6,2417.5,0.28954]
[1728139702974,3.2078,2417.6,2417.3,7.5972397]
[1728139703168,3.2078,2417.6,2417.4,1.11224]
[1728139703465,3.2078,2417.6,2417.4,5.4794797]
[1728139703785,3.2078,2417.6,2417.4,1.11224]
[1728139704075,0.28954,2417.5,2417.4,0.4211]
[1728139704258,1.11974,2417.5,2417.4,0.4211]
[1728139705577,0.8302,2417.5,2417.4,0.71065]
[1728139706679,0.425,2417.5,2417.4,0.71065]
[1728139706867,3.51952,2417.7,2417.5,0.28954]
[1728139707065,3.23,2417.7,2417.4,0.4211]
[1728139707372,0.28952,2417.7,2417.4,0.71064]
[1728139709569,4.0369,2417.8,2417.4,0.71064]
[1728139709770,0.28953,2417.6,2417.4,0.71064]
[1728139710480,0.28953,2417.6,2417.4,0.4211]
[1728139710670,4.0369,2417.8,2417.4,0.4211]
[1728139710876,0.28954,2417.5,2417.4,0.4211]
[1728139711172,4.0369,2417.8,2417.4,0.4211]
[1728139711376,4.0369,2417.8,2417.4,0.71065]
[1728139711377,0.28953,2417.6,2417.4,0.71065]
[1728139711768,0.28953,2417.6,2417.4,0.4211]
[1728139712975,4.0369,2417.8,2417.4,0.4211]
[1728139712976,0.28952,2417.7,2417.4,0.71064]
[1728139713177,0.28952,2417.7,2417.5,0.4268]
[1728139713970,0.28952,2417.7,2417.5,0.71634]
[1728139714570,0.28952,2417.7,2417.5,0.4268]
[1728139714872,4.0369,2417.8,2417.5,0.71633]
[1728139715078,4.0369,2417.8,2417.6,0.28952]
[1728139715079,4.3264,2417.8,2417.6,0.28952]
[1728139715676,2.5864,2417.8,2417.6,0.28952]
[1728139717181,2.5864,2417.8,2417.5,0.4268]
[1728139717182,2.2969,2417.8,2417.5,0.4268]
[1728139717377,0.28951,2417.7,2417.5,0.71633]
[1728139720582,2.2969,2417.8,2417.5,0.4268]
[1728139720777,2.2969,2417.8,2417.4,0.4211]
[1728139720778,1.49,2417.6,2417.4,0.4211]
[1728139721078,1.49,2417.6,2417.5,0.28954]
[1728139721489,1.49,2417.6,2417.4,0.71064]
[1728139721490,1.77953,2417.6,2417.4,0.71064]
[1728139721787,0.3885,2417.5,2417.4,0.71064]
[1728139722578,1.49,2417.6,2417.4,0.4211]
[1728139722972,1.49,2417.6,2417.5,0.28954]
[1728139723984,1.11251,2417.8,2417.4,0.4211]
[1728139723985,0.823,2417.8,2417.4,0.4211]
[1728139724183,1.49,2418.3,2417.7,0.72379]
[1728139724486,0.4135,2418.2,2417.8,25.41624265]
[1728139724683,0.4135,2418.2,2417.9,1.07928647]
[1728139724684,1.49,2418.1,2417.9,1.07928647]
[1728139724891,1.49,2418.1,2418.0,0.28948]
[1728139725080,1.49,2418.1,2418.0,4.59915903]
[1728139725582,0.4135,2418.2,2418.0,4.59915903]
[1728139725583,3.6435,2418.2,2418.0,4.59915903]
[1728139725786,3.6435,2418.2,2418.1,0.28946]
[1728139727278,0.4135,2418.2,2418.1,0.28946]
[1728139727484,3.23,2418.5,2418.1,4.1352]
[1728139727785,3.23,2418.5,2418.2,0.8332]
[1728139727986,3.23,2418.5,2418.3,0.28943]
[1728139728383,3.23,2418.5,2418.4,0.28943]
[1728139728578,1.2056,2418.7,2418.5,0.28941]
[1728139728579,4.4356,2418.7,2418.5,0.28941]
[1728139728783,0.3928,2418.7,2418.6,0.2894]
[1728139729081,0.3928,2418.7,2418.6,0.36195058]
[1728139729282,0.3928,2418.7,2418.6,0.2894]
[1728139730082,0.3928,2418.7,2418.4,3.2078]
[1728139730381,0.3928,2418.7,2418.6,0.2894]
[1728139732588,0.3928,2418.7,2418.6,3.2078]
[1728139733088,0.3928,2418.7,2418.6,3.4972]
[1728139735389,3.6228,2418.7,2418.6,3.2078]
[1728139735685,13.7572,2418.7,2418.3,3.2078]
[1728139735889,3.23,2418.4,2418.3,3.2078]
[1728139736684,3.51943,2418.4,2418.3,3.2078]
[1728139737986,3.51943,2418.4,2418.0,0.69257]
[1728139738195,0.4276,2418.3,2418.1,0.28946]
[1728139738489,0.4267,2418.2,2418.1,9.01870176]
[1728139740788,0.4267,2418.2,2418.1,0.28946]
[1728139743894,3.94615,2418.2,2418.0,0.28948]
[1728139744096,0.67847,2418.1,2417.8,3.49729]
[1728139744288,3.23,2417.9,2417.8,3.2078]
[1728139744589,3.23,2417.9,2417.8,3.4973]
[1728139745287,3.6468,2417.9,2417.8,0.2895]
[1728139745486,3.6468,2417.9,2417.7,0.2895]
[1728139745789,3.6468,2417.9,2417.8,0.2895]
[1728139746097,0.4168,2417.9,2417.8,0.2895]
[1728139746994,3.6468,2417.9,2417.7,0.28951]
[1728139747294,3.6468,2417.9,2417.6,11.71872854]
[1728139747494,3.23,2417.7,2417.6,3.49732]
[1728139748200,3.23,2417.7,2417.6,0.28952]
[1728139757596,1.49,2417.7,2417.6,0.28952]
[1728139761502,1.9143,2417.7,2417.6,0.28952]
[1728139764504,6.0503,2417.7,2417.2,1.07928647]
[1728139764798,1.77956,2417.3,2417.2,1.07928647]
[1728139765103,1.49,2417.3,2417.2,1.36885647]
[1728139769103,1.49,2417.3,2417.2,0.28957]
[1728139774404,1.8961,2417.3,2417.2,0.28957]
[1728139775001,1.8961,2417.3,2417.0,3.2078]
[1728139775198,0.4119,2417.2,2417.1,0.28957]
[1728139775402,1.9019,2417.2,2417.1,0.28957]
[1728139781009,1.9019,2417.2,2417.0,0.28959]
[1728139781213,1.9019,2417.2,2417.0,0.2896]
[1728139781214,1.49,2417.1,2417.0,0.2896]
[1728139793523,0.69566,2417.3,2417.0,0.2896]
[1728139793524,1.49,2417.3,2417.2,0.28957]
[1728139795423,1.49,2417.3,2417.2,0.68337]
[1728139795627,0.4011,2417.5,2417.4,0.28955]
[1728139795925,2.3087,2417.7,2417.6,0.28952]
[1728139795926,1.49,2417.7,2417.6,0.28952]
[1728139796532,1.49,2417.7,2417.5,0.71523]
[1728139796725,0.4121,2417.8,2417.5,0.4257]
[1728139796926,1.49,2417.9,2417.6,3.2078]
[1728139797128,2.19156,2418.1,2417.8,0.28949]
[1728139797324,2.19157,2418.1,2417.8,0.28949]
[1728139798221,2.19157,2418.1,2417.7,1.49078647]
[1728139798222,1.9021,2418.1,2417.7,1.49078647]
[1728139798534,1.9021,2418.1,2417.9,0.28948]
[1728139798926,2.19157,2418.1,2417.9,0.28948]
[1728139800332,2.19157,2418.1,2417.8,4.69764186]
[1728139800333,2.19157,2418.1,2417.8,4.98714186]
[1728139801331,2.19157,2418.1,2417.8,4.69764186]
[1728139801332,1.49,2417.9,2417.8,4.69764186]
[1728139801529,5.626,2417.9,2417.5,1.07928647]
[1728139801833,1.77952,2417.6,2417.3,1.46483647]
[1728139802031,1.49,2417.4,2417.3,1.36883647]
[1728139802230,1.49,2417.4,2417.3,1.07928647]
[1728139802422,1.49,2417.4,2417.2,1.07928647]
[1728139802626,1.8845,2417.4,2417.3,0.28956]
[1728139802830,1.8845,2417.4,2417.3,8.70522948]
[1728139803140,1.8845,2417.4,2417.1,4.28708647]
[1728139803141,2.17406,2417.4,2417.1,4.28708647]
[1728139803331,1.889,2417.3,2417.1,4.28708647]
[1728139804045,1.889,2417.3,2417.1,4.57666647]
[1728139804225,1.889,2417.3,2417.1,1.07928647]
[1728139805634,1.889,2417.3,2417.1,1.36886647]
[1728139806228,2.17856,2417.3,2417.1,1.07928647]
[1728139806536,4.42637,2417.2,2417.0,1.07928647]
[1728139806833,1.889,2417.3,2416.9,1.07928647]
[1728139806834,1.77958,2417.1,2416.9,1.07928647]
[1728139807036,2.17138,2417.1,2416.9,1.07928647]
[1728139807436,1.8818,2417.1,2416.9,1.36889647]
[1728139807631,1.8818,2417.1,2416.8,4.57670647]
[1728139807632,0.2896,2417.0,2416.8,4.57670647]
[1728139807836,1.49,2416.9,2416.8,4.57670647]
[1728139808039,1.49,2416.9,2416.8,6.00194086]
[1728139809225,1.49,2417.0,2416.8,4.63303439]
[1728139809438,1.49,2417.0,2416.9,0.2896]
[1728139809633,1.49,2417.0,2416.9,0.28961]
[1728139810428,1.49,2417.0,2416.8,4.28863187]
[1728139810738,1.49,2417.0,2416.9,0.28961]